bitfinex-derivatives/quotes_ETHF0:USTF0_20240922
["timestamp","ask_amount","ask_price","bid_price","bid_amount"]
[1727028985351,2.97088,2578.2,2577.9,4.3548]
[1727028985352,2.97088,2578.2,2578.0,0.3879]
[1727028985549,0.38788,2578.2,2578.0,0.3879]
[1727028986263,3.55268,2578.3,2577.9,4.3548]
[1727028986468,3.55268,2578.3,2577.9,1.147]
[1727028986853,0.3879,2578.1,2577.9,1.53492]
[1727028987550,0.3879,2578.1,2578.0,0.38791]
[1727028987753,0.3879,2578.1,2577.9,1.53491]
[1727028988351,0.38791,2578.0,2577.9,1.53491]
[1727028988651,0.3879,2578.1,2577.9,1.53491]
[1727028988857,2.50791,2578.0,2577.9,1.147]
[1727028989057,2.50791,2578.0,2577.9,0.761]
[1727028989256,0.38794,2577.8,2577.7,0.3769]
[1727028989464,0.38794,2577.8,2577.7,0.7634]
[1727028990357,2.50794,2577.8,2577.7,0.3865]
[1727028990960,0.38791,2578.0,2577.7,0.3865]
[1727028991460,0.38791,2578.1,2577.9,0.38791]
[1727028991655,0.38791,2578.1,2578.0,0.3783]
[1727028995966,0.38793,2577.9,2577.8,0.78554]
[1727028998566,0.3729,2578.0,2577.7,0.3865]
[1727028998975,0.38793,2577.9,2577.8,0.38794]
[1727028999471,2.50793,2577.9,2577.8,0.38794]
[1727028999772,2.12,2577.9,2577.7,0.77445]
[1727029000076,2.50793,2577.9,2577.8,0.38794]
[1727029000468,2.12,2577.9,2577.7,0.3865]
[1727029000771,2.50793,2577.9,2577.8,0.38794]
[1727029000972,0.38788,2578.2,2577.7,5.23558]
[1727029001170,0.38788,2578.2,2578.1,0.38789]
[1727029001579,0.38788,2578.2,2578.1,1.54369]
[1727029001969,0.38788,2578.2,2578.1,1.1558]
[1727029002769,0.38788,2578.2,2578.1,0.7739]
[1727029002972,0.3879,2578.1,2577.9,0.38792]
[1727029003172,2.5079,2578.1,2577.9,0.38792]
[1727029003372,2.5079,2578.1,2578.0,0.38791]
[1727029004275,2.5079,2578.1,2577.9,0.38792]
[1727029004479,2.5079,2578.1,2578.0,0.38791]
[1727029005081,2.12,2578.1,2578.0,0.38791]
[1727029006483,2.5079,2578.1,2578.0,0.38791]
[1727029010174,2.5079,2578.1,2577.9,0.38792]
[1727029011480,2.5079,2578.1,2578.0,0.38791]
[1727029011681,2.5079,2578.1,2577.8,2.19664933]
[1727029011682,2.5079,2578.1,2577.9,0.38791]
[1727029012182,2.5079,2578.1,2578.0,0.38791]
[1727029012483,0.38791,2578.0,2577.9,0.38792]
[1727029012780,0.38793,2577.9,2577.8,2.19664933]
[1727029012982,3.87155,2577.9,2577.8,0.3981]
[1727029013185,7.75075,2577.9,2577.8,0.3981]
[1727029014180,3.87155,2577.9,2577.8,0.3981]
[1727029015484,2.90173,2577.9,2577.8,0.78604]
[1727029015683,0.38792,2578.0,2577.9,0.38793]
[1727029015889,0.3879,2578.1,2578.0,0.38791]
[1727029016091,2.97089,2578.2,2578.1,0.3879]
[1727029016389,0.38789,2578.2,2578.1,0.3879]
[1727029017390,5.09088,2578.3,2578.2,0.38788]
[1727029017683,0.38788,2578.3,2578.2,0.38788]
[1727029018089,0.38789,2578.2,2578.1,0.38789]
[1727029018487,0.3879,2578.1,2578.0,0.38791]
[1727029018680,0.38789,2578.2,2578.1,0.38789]
[1727029019783,0.3879,2578.1,2578.0,0.3879]
[1727029022499,0.3879,2578.1,2578.0,1.40034933]
[1727029024599,0.3879,2578.1,2578.0,2.81660657]
[1727029024989,0.3879,2578.1,2578.0,2.42870657]
[1727029025292,2.5079,2578.1,2578.0,1.01244933]
[1727029025483,3.47765,2578.1,2578.0,2.42906662]
[1727029025683,3.47765,2578.1,2578.0,1.41661729]
[1727029025894,3.47765,2578.1,2578.0,2.43375281]
[1727029026096,3.47765,2578.1,2578.0,1.01713552]
[1727029026294,3.47765,2578.1,2578.0,2.43379619]
[1727029026593,2.5079,2578.1,2578.0,2.93533467]
[1727029028690,3.47765,2578.1,2578.0,2.93533467]
[1727029028897,3.47765,2578.1,2578.0,1.41666067]
[1727029029090,3.47765,2578.1,2578.0,2.43439285]
[1727029030489,3.47765,2578.1,2578.0,2.43438132]
[1727029030787,0.3879,2578.1,2578.0,1.41666067]
[1727029030988,2.12,2578.2,2578.1,0.3879]
[1727029031196,2.97087,2578.3,2578.2,0.38787]
[1727029031393,2.97087,2578.3,2578.2,3.19854844]
[1727029032094,2.97087,2578.3,2578.2,3.19862903]
[1727029032494,2.97087,2578.3,2578.2,2.81075903]
[1727029032691,9.93894,2578.3,2578.2,1.01765057]
[1727029032997,8.96927,2578.3,2578.0,1.92091272]
[1727029033189,0.3942,2578.2,2578.1,2.43520819]
[1727029033392,3.48391,2578.2,2578.0,1.01774553]
[1727029033594,1.35765,2578.1,2578.0,1.01774553]
[1727029034296,1.35765,2578.1,2578.0,2.43527171]
[1727029034490,1.35765,2578.1,2578.0,2.43526782]
[1727029034690,1.35765,2578.1,2578.0,2.43527714]
[1727029034891,1.35765,2578.1,2578.0,1.01774553]
[1727029035093,1.35765,2578.1,2578.0,1.80537668]
[1727029035094,2.9709,2578.1,2578.0,1.80537668]
[1727029035298,2.9709,2578.1,2578.0,3.33196069]
[1727029035700,2.9709,2578.1,2578.0,2.94405069]
[1727029037096,3.94065,2578.1,2578.0,2.94405069]
[1727029037301,3.94065,2578.1,2578.0,1.01783528]
[1727029038589,3.94065,2578.1,2578.0,2.43540673]
[1727029038796,3.94065,2578.1,2578.0,1.01783528]
[1727029039002,3.94065,2578.1,2578.0,2.43538123]
[1727029039003,2.9709,2578.1,2578.0,2.43538123]
[1727029039297,2.9709,2578.1,2578.0,2.94412996]
[1727029040304,2.9709,2578.1,2578.0,1.01782386]
[1727029042113,15.67,2578.1,2577.9,0.71590787]
[1727029042407,0.38801,2577.3,2577.2,4.496]
[1727029042595,0.38801,2577.3,2577.2,1.41697982]
[1727029042596,5.09101,2577.3,2577.2,1.41697982]
[1727029042794,0.38805,2577.1,2576.9,0.48468118]
[1727029043002,2.50805,2577.1,2577.0,1.41711146]
[1727029043397,4.703,2577.1,2576.9,0.87275118]
[1727029043600,4.703,2577.1,2577.0,1.1556]
[1727029043798,5.09104,2577.1,2577.0,1.1556]
[1727029044498,8.97184,2577.1,2577.0,1.1556]
[1727029045995,0.38806,2577.0,2576.9,0.48468118]
[1727029046297,5.09106,2577.0,2576.9,0.48468118]
[1727029046909,6.06119,2577.0,2576.9,0.48468118]
[1727029047499,9.94199,2577.0,2576.9,0.48468118]
[1727029049204,8.97186,2577.0,2576.9,0.48468118]
[1727029049498,5.09106,2577.0,2576.9,0.48468118]
[1727029050396,2.50806,2577.0,2576.9,0.48468118]
[1727029051005,0.38806,2577.0,2576.9,0.48468118]
[1727029051206,0.38805,2576.8,2576.7,0.3763]
[1727029051598,2.50805,2576.8,2576.7,0.3763]
[1727029052809,2.12,2576.8,2576.7,0.3763]
[1727029053106,2.12,2576.8,2576.7,0.76437]
[1727029053315,2.584,2576.8,2576.7,0.76437]
[1727029054506,2.584,2576.8,2576.7,0.3763]
[1727029054507,7.82299,2576.8,2576.7,0.3763]
[1727029054801,7.43495,2576.8,2576.2,3.2078]
[1727029054997,2.50813,2576.3,2576.2,3.2078]
[1727029055200,0.38814,2576.2,2576.1,0.7652]
[1727029055404,0.38814,2576.2,2576.1,0.3863]
[1727029055607,1.35851,2576.2,2576.1,0.3863]
[1727029056108,0.3882,2575.8,2575.7,0.7566]
[1727029056314,0.3882,2575.8,2575.4,0.3863]
[1727029056315,0.38825,2575.6,2575.4,0.3863]
[1727029056606,2.12,2575.5,2575.4,0.3863]
[1727029056807,2.50825,2575.5,2575.4,0.3863]
[1727029057403,7.36208,2575.5,2575.4,0.3863]
[1727029057601,6.39145,2575.5,2575.4,0.3863]
[1727029057911,7.36208,2575.5,2575.4,0.3863]
[1727029058215,6.39145,2575.5,2575.4,0.3863]
[1727029058408,7.36208,2575.5,2575.4,0.3863]
[1727029058805,7.36208,2575.5,2574.9,3.59614]
[1727029058806,0.38828,2575.3,2574.9,3.2078]
[1727029059006,0.38828,2575.3,2573.8,7.0786422]
[1727029059007,2.12,2575.0,2574.6,0.3734]
[1727029059209,2.12,2575.0,2574.2,3.5688]
[1727029059210,2.12,2574.7,2574.2,3.01561881]
[1727029059502,2.12,2574.7,2574.4,3.2078]
[1727029059503,2.782,2574.7,2574.4,3.2078]
[1727029059704,2.782,2574.7,2574.5,1.1149]
[1727029060906,2.12,2574.8,2574.5,1.1149]
[1727029061107,2.12,2574.8,2574.6,0.38837]
[1727029061312,2.12,2575.0,2574.9,0.38834]
[1727029061535,2.782,2575.1,2575.0,0.38833]
[1727029061814,2.12,2575.2,2575.0,0.38833]
[1727029062113,2.12,2575.4,2575.1,0.7749]
[1727029062322,2.12,2575.4,2575.2,0.76619]
[1727029062611,2.12,2575.4,2575.2,0.3779]
[1727029063216,2.12,2575.4,2575.2,0.76619]
[1727029064214,2.12,2575.4,2575.2,0.3779]
[1727029064415,2.12,2575.4,2575.2,0.76619]
[1727029065712,2.12,2575.4,2575.3,3.59608]
[1727029067015,2.12,2575.4,2575.2,0.76619]
[1727029067226,2.50828,2575.4,2575.2,0.3779]
[1727029067412,2.50828,2575.4,2575.2,0.76619]
[1727029067815,2.12,2575.4,2575.2,0.76619]
[1727029068415,2.12,2575.4,2575.3,0.38828]
[1727029069130,2.12,2575.4,2575.2,0.76618]
[1727029070420,2.12,2575.8,2575.3,7.091]
[1727029070626,2.783,2576.0,2575.7,0.38821]
[1727029070924,3.17118,2576.0,2575.8,0.7963]
[1727029071423,2.50819,2575.9,2575.8,0.7963]
[1727029071820,2.12,2575.9,2575.8,0.7963]
[1727029072127,5.29117,2576.1,2575.9,0.38819]
[1727029072515,2.12,2576.1,2575.8,0.7963]
[1727029072711,2.12,2576.3,2575.9,3.2078]
[1727029072915,2.50813,2576.3,2576.1,0.38815]
[1727029073111,2.50813,2576.3,2576.0,0.38816]
[1727029073112,2.50814,2576.3,2576.0,0.38816]
[1727029073316,2.12,2576.3,2576.1,0.38815]
[1727029073518,2.50813,2576.3,2576.1,0.38815]
[1727029073718,2.12,2576.3,2576.2,0.38814]
[1727029074118,2.50813,2576.3,2576.1,0.38815]
[1727029074718,0.38817,2576.0,2575.8,0.7963]
[1727029074918,0.38819,2575.9,2575.8,0.7963]
[1727029077034,2.50818,2576.0,2575.8,0.7963]
[1727029077525,2.50818,2576.0,2575.8,1.1845]
[1727029079518,2.50818,2576.0,2575.8,0.7963]
[1727029079928,0.38819,2575.9,2575.8,0.7963]
[1727029080731,2.12,2576.0,2575.8,0.7963]
[1727029081518,2.50819,2576.0,2575.8,0.7963]
[1727029082628,0.38819,2575.9,2575.8,0.7963]
[1727029083340,0.38819,2575.9,2575.8,0.4012]
[1727029083828,0.38819,2575.9,2575.6,3.2078]
[1727029083829,0.38822,2575.7,2575.6,3.2078]
[1727029084128,0.38822,2575.7,2575.5,0.3803]
[1727029084129,0.38823,2575.6,2575.5,0.3803]
[1727029084336,3.12923,2575.6,2575.5,0.3803]
[1727029086430,0.38826,2575.5,2575.3,0.3701]
[1727029086635,0.38826,2575.5,2575.4,0.3975]
[1727029088237,2.741,2575.5,2575.4,4.2807]
[1727029088435,4.861,2576.1,2575.4,13.4885]
[1727029088634,5.24917,2576.1,2575.7,3.2078]
[1727029088839,0.38818,2576.0,2575.8,1.1551]
[1727029089040,0.38818,2576.0,2575.9,0.3877]
[1727029090339,0.38822,2575.7,2575.5,0.38824]
[1727029090640,0.38822,2575.7,2575.6,0.3877]
[1727029092339,2.50822,2575.7,2575.6,0.3877]
[1727029092547,0.9705,2575.9,2575.6,0.3877]
[1727029092548,2.12,2575.9,2575.6,0.3877]
[1727029092743,0.38821,2575.8,2575.6,0.77593]
[1727029093234,0.38821,2575.8,2575.6,0.3877]
[1727029093430,0.38821,2575.8,2575.6,0.77593]
[1727029093631,2.12,2575.9,2575.6,0.3877]
[1727029093837,2.12,2575.9,2575.8,0.3882]
[1727029094745,2.12,2576.1,2576.0,0.38817]
[1727029094937,2.12,2576.1,2576.0,3.59597]
[1727029095439,2.12,2576.1,2576.0,4.00227]
[1727029101245,2.50816,2576.1,2576.0,3.6141]
[1727029101444,2.50816,2576.1,2575.7,3.6043]
[1727029101445,0.3882,2575.8,2575.7,3.6043]
[1727029101645,2.5082,2575.8,2575.7,3.6043]
[1727029102241,0.38822,2575.7,2575.6,0.3877]
[1727029102750,4.27062,2575.7,2575.6,0.3877]
[1727029103942,4.27062,2575.7,2575.3,3.2078]
[1727029103943,0.38826,2575.4,2575.3,3.2078]
[1727029104143,0.38826,2575.4,2575.2,0.7813]
[1727029104144,2.50826,2575.4,2575.2,0.7813]
[1727029104444,0.38828,2575.3,2575.2,0.7813]
[1727029105945,4.861,2575.4,2575.2,0.7813]
[1727029106349,2.12,2575.4,2575.2,1.16959]
[1727029106543,4.861,2575.4,2575.2,1.16959]
[1727029107045,5.24927,2575.4,2575.2,0.7813]
[1727029108544,2.12,2575.4,2575.2,0.7813]
[1727029108748,2.50827,2575.4,2575.2,1.16959]
[1727029109149,2.50827,2575.4,2575.2,0.7813]
[1727029109347,2.12,2575.4,2575.2,0.7813]
[1727029109551,2.50828,2575.4,2575.2,0.7813]
[1727029109850,2.12,2575.4,2575.3,0.38828]
[1727029110045,2.50827,2575.4,2575.2,1.16959]
[1727029110438,2.12,2575.4,2575.2,1.16959]
[1727029110638,2.50827,2575.4,2575.2,1.16959]
[1727029110851,2.12,2575.4,2575.3,0.38828]
[1727029111050,2.50827,2575.4,2575.2,1.16959]
[1727029113853,0.38828,2575.3,2575.2,0.7813]
[1727029114042,0.38828,2575.3,2575.2,0.3848]
[1727029117759,3.09128,2575.3,2575.2,0.3848]
[1727029120855,0.38831,2575.1,2575.0,3.2078]
[1727029121062,2.50831,2575.1,2574.9,0.3687]
[1727029121574,0.38833,2575.0,2574.9,0.3687]
[1727029121955,0.38834,2574.9,2574.8,0.7684]
[1727029122453,2.50834,2574.9,2574.8,0.7684]
[1727029122657,2.12,2574.9,2574.8,1.15676]
[1727029123863,0.38829,2575.3,2575.1,0.38831]
[1727029124062,2.50827,2575.4,2575.2,0.7918]
[1727029124260,4.823,2575.6,2575.3,0.3853]
[1727029124461,2.12,2575.6,2575.5,0.38825]
[1727029124660,2.50823,2575.6,2575.5,0.38825]
[1727029124870,2.12,2575.6,2575.5,0.38825]
[1727029125559,2.50824,2575.6,2575.4,0.38826]
[1727029127064,2.50824,2575.6,2575.4,3.59606]
[1727029127459,2.12,2575.6,2575.5,0.38825]
[1727029129666,2.12,2575.8,2575.7,0.38822]
[1727029130370,2.12,2575.8,2575.7,0.77552]
[1727029131966,2.5082,2575.8,2575.7,0.3873]
[1727029132673,2.5082,2575.8,2575.7,0.77552]
[1727029133761,2.5082,2575.8,2575.7,0.3873]
[1727029134171,2.12,2575.8,2575.7,0.77552]
[1727029134676,2.12,2576.3,2575.8,0.97052]
[1727029134876,2.12,2576.3,2576.1,0.38815]
[1727029134877,2.50814,2576.3,2576.1,0.38815]
[1727029135174,2.50814,2576.3,2576.2,0.7723]
[1727029137175,6.0016,2576.3,2575.9,0.3916]
[1727029137365,2.50817,2576.0,2575.9,0.3916]
[1727029137566,2.12,2576.0,2575.9,0.77979]
[1727029138168,2.50817,2576.0,2575.9,0.3916]
[1727029138770,2.12,2576.0,2575.9,0.77979]
[1727029139086,0.97035,2576.3,2576.0,0.38816]
[1727029139087,2.50815,2576.2,2576.0,0.38816]
[1727029139280,2.50815,2576.2,2576.1,0.38816]
[1727029139670,2.12,2576.2,2576.1,4.26976]
[1727029139871,2.12,2576.2,2576.1,0.38816]
[1727029140573,2.12,2576.2,2576.1,4.26976]
[1727029140769,2.12,2576.2,2575.9,3.5994]
[1727029140770,2.50814,2576.2,2575.9,3.5994]
[1727029140978,2.50814,2576.2,2576.0,0.38817]
[1727029141372,2.50814,2576.2,2576.1,0.3875]
[1727029141879,2.50814,2576.2,2576.1,0.77566]
[1727029142577,2.50814,2576.2,2576.1,0.3875]
[1727029145078,0.38817,2576.0,2575.9,0.3916]
[1727029145287,0.9705,2575.9,2575.4,4.52326]
[1727029145469,0.9705,2575.9,2575.5,0.7978]
[1727029145672,5.8468,2576.0,2575.5,1.1781]
[1727029145673,2.50821,2575.8,2575.5,1.1781]
[1727029145986,2.12,2575.8,2575.6,0.38822]
[1727029146180,5.71599,2576.0,2575.7,0.38821]
[1727029146378,0.3882,2575.9,2575.7,0.38822]
[1727029147479,8.35499,2576.0,2575.5,4.3859]
[1727029148180,0.3882,2575.9,2575.7,0.38821]
[1727029148386,2.50821,2575.8,2575.6,0.38823]
[1727029150287,0.38823,2575.7,2575.5,4.77414]
[1727029152190,0.3882,2575.9,2575.7,0.38822]
[1727029152886,5.14819,2576.0,2575.7,0.38821]
[1727029153190,0.9703,2576.4,2575.9,3.2078]
[1727029153191,2.12,2576.4,2575.9,3.2078]
[1727029153493,0.38814,2576.3,2576.1,0.38815]
[1727029154789,2.50812,2576.4,2576.0,1.1475]
[1727029154985,2.12,2576.4,2576.3,0.38813]
[1727029155187,2.12,2576.4,2576.2,3.2078]
[1727029155490,2.12,2576.4,2576.3,0.38813]
[1727029158087,2.50809,2576.6,2576.3,0.38813]
[1727029158294,5.14709,2576.6,2576.4,0.76421]
[1727029158585,2.50809,2576.6,2576.5,0.7543]
[1727029159791,2.12,2576.6,2576.5,1.1424]
[1727029159991,2.50808,2576.6,2576.5,0.7543]
[1727029160196,2.12,2576.8,2576.5,1.1424]
[1727029160491,2.639,2577.1,2576.5,3.9621]
[1727029160683,4.759,2577.2,2576.8,3.2078]
[1727029160996,2.50802,2577.0,2576.9,0.3761]
[1727029162097,0.38807,2576.7,2576.5,1.14239]
[1727029162296,0.38807,2576.7,2576.6,0.3954]
[1727029162593,2.12,2576.8,2576.6,0.3954]
[1727029162788,2.50805,2576.9,2576.7,0.38807]
[1727029162988,2.50805,2576.9,2576.6,0.3954]
[1727029162989,0.38806,2576.8,2576.6,0.78348]
[1727029163186,0.38806,2576.8,2576.7,0.38807]
[1727029163389,0.38806,2576.8,2576.6,0.78348]
[1727029163582,0.38802,2577.0,2576.8,0.38805]
[1727029163783,0.38802,2577.1,2576.9,0.38803]
[1727029163993,0.38802,2577.1,2576.6,0.3954]
[1727029163994,3.47805,2577.1,2577.0,0.3809]
[1727029164893,3.47805,2577.1,2576.7,0.3975]
[1727029164894,0.38805,2576.8,2576.7,0.3975]
[1727029165093,2.50805,2576.8,2576.7,0.7727]
[1727029165287,2.50805,2576.8,2576.7,0.3752]
[1727029165490,0.3881,2576.5,2576.2,3.5935]
[1727029165691,2.12,2576.5,2576.2,4.74284]
[1727029166097,2.12,2576.5,2576.3,0.38813]
[1727029166098,2.50811,2576.5,2576.3,0.38813]
[1727029166694,0.38811,2576.4,2576.2,4.74284]
[1727029166995,2.50811,2576.5,2576.2,4.74284]
[1727029167399,0.38811,2576.4,2576.2,4.74284]
[1727029167588,2.12,2576.5,2576.2,4.74284]
[1727029167589,2.50811,2576.5,2576.2,4.74284]
[1727029167896,0.38808,2576.6,2576.4,0.38811]
[1727029168095,2.50808,2576.7,2576.5,0.3881]
[1727029168303,2.50808,2576.7,2576.6,0.3763]
[1727029168685,2.12,2576.7,2576.6,0.3763]
[1727029168892,0.38806,2576.8,2576.6,0.76438]
[1727029169091,0.38806,2576.8,2576.7,0.7649]
[1727029169291,0.38805,2576.9,2576.7,0.7649]
[1727029169603,0.38805,2576.9,2576.7,1.15297]
[1727029169988,0.38805,2576.9,2576.7,0.7649]
[1727029170192,0.38805,2576.9,2576.7,1.15297]
[1727029170193,2.12,2576.8,2576.7,1.15297]
[1727029172094,2.50801,2577.1,2576.9,0.38804]
[1727029172600,2.50801,2577.1,2577.0,0.404]
[1727029173690,2.50801,2577.1,2577.0,0.79202]
[1727029173887,2.50801,2577.1,2577.0,0.404]
[1727029174299,2.12,2577.1,2577.0,0.79202]
[1727029175096,0.388,2577.2,2577.0,0.79202]
[1727029175399,0.96984,2577.7,2577.3,0.38797]
[1727029175400,0.38795,2577.5,2577.3,0.38797]
[1727029175596,0.38795,2577.5,2577.4,1.195]
[1727029175999,0.38795,2577.5,2577.4,5.075]
[1727029176203,0.38795,2577.5,2577.4,1.195]
[1727029176896,0.38795,2577.5,2577.4,5.075]
[1727029177093,0.38795,2577.5,2577.4,1.195]
[1727029177289,2.12,2577.7,2577.4,5.075]
[1727029177606,0.38794,2577.6,2577.4,1.58296]
[1727029178708,2.12,2577.7,2577.4,1.195]
[1727029179001,0.38794,2577.6,2577.4,1.58296]
[1727029181302,2.50795,2577.5,2577.4,1.195]
[1727029181508,2.50795,2577.5,2577.4,0.3992]
[1727029185401,6.96988,2577.5,2577.0,1.17432]
[1727029185603,6.96988,2577.5,2577.1,0.3979]
[1727029185604,0.388,2577.2,2577.1,0.3979]
[1727029185812,2.50798,2577.3,2577.1,0.7859]
[1727029186311,2.12,2577.3,2577.2,0.38799]
[1727029186511,2.50798,2577.3,2577.1,0.7859]
[1727029187611,0.38799,2577.3,2577.1,0.7859]
[1727029190023,2.12,2577.5,2577.2,3.88]
[1727029190223,0.38797,2577.4,2577.2,0.38799]
[1727029190414,0.38798,2577.3,2577.2,0.38799]
[1727029190615,0.38798,2577.3,2577.1,0.7859]
[1727029190816,0.38798,2577.3,2577.2,3.88]
[1727029191321,2.12,2577.5,2577.2,4.26799]
[1727029191322,0.38796,2577.4,2577.2,4.26799]
[1727029191512,0.38796,2577.4,2577.2,0.38799]
[1727029191712,0.38796,2577.4,2577.3,4.26798]
[1727029191912,0.38796,2577.4,2577.3,0.38798]
[1727029192113,0.38796,2577.4,2577.3,4.26798]
[1727029192318,2.12,2577.5,2577.4,0.38796]
[1727029192629,2.50793,2577.7,2577.2,3.2078]
[1727029192816,0.38793,2577.6,2577.5,0.38794]
[1727029194029,2.50792,2577.7,2577.5,3.59574]
[1727029194218,0.38791,2577.8,2577.6,1.14833]
[1727029194417,2.12,2577.9,2577.6,1.14833]
[1727029194418,0.38789,2577.9,2577.7,0.38792]
[1727029194619,0.3879,2577.8,2577.6,1.14832]
[1727029194824,0.3879,2577.8,2577.6,1.14833]
[1727029195316,0.38792,2577.7,2577.6,0.7604]
[1727029196531,0.38797,2577.4,2577.2,0.38798]
[1727029196720,0.38795,2577.5,2577.2,0.3988]
[1727029197030,0.38795,2577.5,2577.3,0.38798]
[1727029197925,0.38796,2577.4,2577.3,0.38798]
[1727029198324,0.38796,2577.4,2577.2,0.78678]
[1727029198618,0.38798,2577.3,2577.2,0.3988]
[1727029199524,0.38798,2577.3,2577.2,0.78679]
[1727029199727,0.38798,2577.3,2577.2,0.3988]
[1727029200530,0.96986,2577.6,2577.1,0.3804]
[1727029200531,0.38799,2577.2,2577.1,0.3804]
[1727029200728,2.12,2577.4,2577.2,0.38799]
[1727029200938,0.38799,2577.3,2577.2,0.38799]
[1727029201420,0.38799,2577.3,2577.1,0.7684]
[1727029201619,0.38799,2577.2,2577.1,0.7684]
[1727029202026,0.38799,2577.2,2577.1,0.76841]
[1727029202627,0.38798,2577.3,2577.1,0.7684]
[1727029202830,0.38799,2577.2,2577.1,0.3804]
[1727029203234,0.38799,2577.2,2577.1,0.76841]
[1727029203731,0.9699,2577.5,2577.2,0.38799]
[1727029203732,0.38799,2577.3,2577.2,0.38799]
[1727029203934,6.29762,2577.7,2577.3,0.38798]
[1727029204129,3.04895,2577.6,2577.1,0.3804]
[1727029204329,3.04895,2577.6,2577.4,0.38796]
[1727029204531,3.04895,2577.6,2577.5,0.4054]
[1727029205738,0.38791,2577.8,2577.5,0.4054]
[1727029205928,0.38792,2577.7,2577.6,0.38]
[1727029209340,0.38792,2577.7,2577.6,3.9655]
[1727029209541,2.12,2578.1,2577.6,7.8447]
[1727029209741,0.96958,2578.3,2577.6,3.9655]
[1727029209938,0.38786,2578.1,2577.9,0.38788]
[1727029210143,0.38786,2578.1,2578.0,1.15567]
[1727029210333,0.38786,2578.1,2578.0,0.7678]
[1727029212249,0.38784,2578.3,2578.1,0.38785]
[1727029212446,0.38783,2578.3,2578.2,0.3969]
[1727029212836,0.38782,2578.4,2578.2,0.78474]
[1727029213546,4.772,2578.6,2578.2,0.78474]
[1727029213547,0.3878,2578.5,2578.2,0.78473]
[1727029213936,0.38781,2578.4,2578.2,0.3969]
[1727029214138,0.38781,2578.5,2578.2,0.3969]
[1727029214350,0.38781,2578.4,2578.2,0.3969]
[1727029214537,0.38781,2578.5,2578.2,0.3969]
[1727029215139,4.772,2578.6,2578.2,0.3969]
[1727029215140,0.38781,2578.4,2578.2,0.3969]
[1727029216345,0.38782,2578.4,2578.2,0.3969]
[1727029217352,0.38782,2578.4,2578.2,3.6047]
[1727029217538,0.38781,2578.5,2578.2,3.99254]
[1727029217947,4.772,2578.6,2578.2,3.6047]
[1727029218152,0.38781,2578.5,2578.2,3.99254]
[1727029218345,0.3878,2578.5,2578.3,0.38782]
[1727029218745,0.3878,2578.5,2578.4,0.3966]
[1727029219047,2.50779,2578.6,2578.4,0.3966]
[1727029219348,2.50779,2578.6,2578.5,0.4028]
[1727029219751,2.652,2578.8,2578.5,0.79059]
[1727029219943,2.652,2578.9,2578.5,0.4028]
[1727029220448,0.38775,2578.9,2578.6,0.38777]
[1727029220648,3.2078,2579.1,2578.7,0.76157]
[1727029220955,0.38771,2579.1,2578.9,0.38773]
[1727029221254,4.772,2579.4,2579.0,0.77012]
[1727029221748,4.772,2579.4,2579.0,0.3824]
[1727029221951,0.38774,2578.9,2578.8,0.3844]
[1727029223263,0.38773,2579.0,2578.8,0.77215]
[1727029223644,0.38773,2579.0,2578.8,0.3844]
[1727029224062,2.12,2579.1,2578.8,0.3844]
[1727029224244,0.38774,2579.0,2578.8,0.3844]
[1727029224649,2.12,2579.1,2578.8,0.3844]
[1727029224650,0.38774,2578.9,2578.8,0.3844]
[1727029226552,1.35709,2578.9,2578.8,0.3844]
[1727029226754,1.35714,2578.8,2578.7,3.5816]
[1727029226949,2.50775,2578.8,2578.7,3.5816]
[1727029227157,0.38775,2578.8,2578.7,3.5816]
[1727029230758,2.651,2579.1,2578.7,3.96937]
[1727029230951,0.38775,2578.9,2578.7,3.96937]
[1727029231558,0.38775,2578.8,2578.7,3.5816]
[1727029231750,0.38775,2578.9,2578.7,3.96937]
[1727029231955,0.38772,2579.1,2578.9,0.38774]
[1727029232159,0.38772,2579.1,2578.9,0.38773]
[1727029232354,0.38772,2579.1,2579.0,0.38772]
[1727029232555,2.12,2579.5,2579.0,3.59552]
[1727029232556,0.3877,2579.2,2579.0,3.59552]
[1727029232860,3.62018,2579.4,2579.0,3.59552]
[1727029233159,0.3877,2579.2,2579.0,3.59552]
[1727029233353,0.38771,2579.1,2579.0,0.38772]
[1727029233757,2.12,2579.2,2578.7,3.5816]
[1727029233966,0.38775,2578.8,2578.7,3.5816]
[1727029234260,0.38775,2578.8,2578.7,3.96937]
[1727029234850,0.38775,2578.9,2578.8,0.38775]
[1727029235053,5.74026,2579.2,2578.8,0.38775]
[1727029235262,5.74026,2579.2,2578.9,0.38773]
[1727029235452,0.38772,2579.1,2578.9,0.38773]
[1727029235659,0.38772,2579.0,2578.9,0.38773]
[1727029236553,0.38772,2579.0,2578.8,0.38774]
[1727029236949,0.38772,2579.0,2578.7,3.5816]
[1727029237262,5.72718,2579.4,2578.7,3.5816]
[1727029237463,0.38771,2579.1,2579.0,0.38772]
[1727029238751,0.38769,2579.2,2578.7,4.55101]
[1727029238953,0.38769,2579.2,2579.0,3.2078]
[1727029239151,0.38769,2579.2,2579.0,3.59551]
[1727029239354,0.38768,2579.3,2579.1,0.3877]
[1727029239558,0.38768,2579.3,2579.2,0.3871]